bitfinex/quotes_ETHUSD_20251124
["timestamp","ask_amount","ask_price","bid_price","bid_amount"]
[1763995208351,0.002,2836.6,2836.3,0.1]
[1763995208563,0.002,2836.6,2835.7,0.405504]
[1763995208896,0.002,2836.6,2836.0,0.1]
[1763995209267,0.002,2836.6,2836.2,0.405504]
[1763995209453,0.002,2836.6,2836.2,0.84864638]
[1763995209791,0.002,2836.6,2836.1,0.1057]
[1763995209997,0.4672,2836.5,2835.3,0.237]
[1763995210164,0.4672,2836.5,2834.7,0.001]
[1763995210553,1.22558954,2836.5,2834.7,0.001]
[1763995210777,0.237,2836.4,2834.7,0.101]
[1763995210976,0.237,2836.4,2834.7,0.001]
[1763995210977,0.405504,2836.3,2834.7,0.001]
[1763995211183,0.1898,2836.0,2834.7,0.001]
[1763995211560,0.237,2835.9,2834.7,0.001]
[1763995211764,0.237,2835.8,2834.9,0.4859]
[1763995212011,0.002,2836.6,2835.3,0.405504]
[1763995212295,0.002,2836.6,2835.7,0.1131]
[1763995212450,0.002,2836.6,2836.0,0.1]
[1763995212656,0.002,2836.6,2835.8,0.1]
[1763995213199,0.1898,2835.9,2833.3,7.48935984]
[1763995213500,0.4672,2835.8,2834.2,0.1057]
[1763995213807,0.7042,2835.8,2834.2,0.1057]
[1763995214360,0.7042,2835.7,2834.2,0.1057]
[1763995214714,0.4672,2835.6,2834.2,0.1057]
[1763995215051,0.4672,2835.6,2834.2,0.001]
[1763995215260,0.237,2835.5,2834.2,0.001]
[1763995215468,0.4672,2835.4,2834.2,0.001]
[1763995215781,0.237,2835.3,2834.2,0.001]
[1763995216080,0.1898,2834.6,2832.9,0.001]
[1763995216521,0.1898,2833.2,2832.9,0.001]
[1763995216919,0.894,2833.2,2832.9,0.001]
[1763995217973,1.22237268,2833.2,2832.9,0.001]
[1763995218175,0.98537268,2833.2,2832.9,0.001]
[1763995218482,1.22237268,2833.2,2832.9,0.001]
[1763995218645,0.75517268,2833.2,2831.5,0.001]
[1763995218835,1.20053422,2833.1,2831.5,0.001]
[1763995219031,0.32783022,2833.0,2831.5,0.001]
[1763995219357,0.72559411,2832.8,2831.5,0.001]
[1763995219660,2.33279375,2832.7,2831.5,0.001]
[1763995219830,1.76844979,2832.7,2831.5,0.001]
[1763995220031,0.7142,2832.6,2831.5,0.001]
[1763995220251,0.1898,2833.2,2831.6,0.50331572]
[1763995220456,0.34299463,2833.8,2831.6,0.50331572]
[1763995220457,0.4772,2833.8,2831.7,3.286963]
[1763995220657,0.1808,2833.5,2832.4,0.1]
[1763995220858,0.1808,2833.5,2832.3,0.1]
[1763995221081,0.4772,2833.4,2831.7,0.467]
[1763995221294,0.4772,2833.4,2831.6,0.101]
[1763995221295,0.405504,2833.3,2831.6,0.101]
[1763995221526,0.72559411,2833.2,2831.6,0.001]
[1763995221698,0.405504,2833.0,2831.6,0.001]
[1763995222007,0.32665214,2832.9,2831.6,0.001]
[1763995222206,0.405504,2832.8,2831.6,0.001]
[1763995222508,0.1808,2831.7,2831.6,0.001]
[1763995222701,7.89486384,2831.6,2831.2,0.001]
[1763995222901,0.405504,2831.4,2830.9,0.001]
[1763995223068,1.13109811,2831.0,2829.2,0.1077]
[1763995223460,0.4772,2831.4,2829.3,0.467]
[1763995223689,0.237,2830.9,2829.3,0.467]
[1763995224018,0.405504,2831.3,2829.4,0.467]
[1763995224197,0.7142,2830.8,2829.2,0.1077]
[1763995224401,0.7142,2830.8,2828.6,0.00896708]
[1763995224402,0.405504,2830.7,2828.6,0.00896708]
[1763995224580,0.4772,2830.6,2828.7,0.467]
[1763995224781,0.7142,2830.6,2828.8,0.1]
[1763995225003,0.4772,2831.2,2829.0,4.39058]
[1763995225180,0.4772,2831.2,2828.9,0.467]
[1763995225181,0.237,2830.7,2829.1,0.485758]
[1763995225392,0.1808,2830.6,2829.1,0.567]
[1763995225569,0.4772,2831.2,2829.3,0.72559411]
[1763995225918,0.237,2831.2,2829.5,0.405504]
[1763995226218,0.7142,2831.2,2829.5,0.405504]
[1763995226398,0.7142,2831.2,2829.4,0.505504]
[1763995226399,0.237,2831.1,2829.4,0.505504]
[1763995226586,0.7142,2831.1,2829.4,0.1]
[1763995226914,0.7142,2831.1,2828.2,0.467]
[1763995226915,1.13109811,2830.6,2828.6,0.10896708]
[1763995227273,1.13109811,2830.6,2828.6,0.00896708]
[1763995227274,0.405504,2830.4,2828.6,0.00896708]
[1763995227474,0.405504,2830.2,2828.6,0.10896708]
[1763995227811,0.405504,2830.0,2828.6,0.00896708]
[1763995228316,0.237,2829.9,2828.6,0.00896708]
[1763995228518,0.1808,2828.7,2828.6,0.00896708]
[1763995228814,0.895,2828.7,2828.6,0.00896708]
[1763995230243,1.300504,2828.7,2828.6,0.00896708]
[1763995230843,0.895,2828.7,2828.6,0.00896708]
[1763995231803,0.1808,2828.7,2828.6,0.00896708]
[1763995232030,0.238,2828.7,2828.6,0.00896708]
[1763995232335,0.7152,2828.7,2828.6,0.00896708]
[1763995232536,0.238,2828.7,2828.6,0.00896708]
[1763995232741,0.7152,2828.7,2828.6,0.00896708]
[1763995233305,0.1808,2829.6,2828.6,0.00896708]
[1763995233306,0.4772,2829.2,2828.6,0.00896708]
[1763995233501,0.1808,2829.6,2828.6,0.00896708]
[1763995233704,0.238,2829.2,2828.6,0.00896708]
[1763995234156,0.882704,2829.1,2828.6,0.00896708]
[1763995234608,0.238,2829.2,2828.6,0.00896708]
[1763995234816,7.48935984,2829.9,2828.6,0.00896708]
[1763995234817,0.4772,2830.2,2828.6,0.47596708]
[1763995235112,0.238,2830.1,2828.7,0.405504]
[1763995235323,0.238,2830.1,2828.8,0.405504]
[1763995235636,0.238,2830.1,2828.6,4.0112301]
[1763995235637,0.238,2830.1,2829.1,0.1]
[1763995235843,0.238,2830.1,2828.9,0.467]
[1763995236150,0.238,2830.1,2829.2,0.1]
[1763995236332,0.238,2830.1,2828.9,0.467]
[1763995236541,0.4772,2830.0,2828.6,0.00896708]
[1763995236845,0.7144,2830.1,2828.7,0.467]
[1763995237059,0.4772,2830.1,2828.7,0.467]
[1763995237355,0.72559411,2830.8,2828.6,0.00896708]
[1763995237508,0.238,2830.7,2828.9,8.52077311]
[1763995237704,0.4772,2831.5,2829.4,0.72559411]
[1763995237912,0.238,2831.4,2829.5,0.467]
[1763995238306,0.4772,2831.3,2829.0,0.467]
[1763995238560,1.13109811,2831.2,2829.0,0.467]
[1763995238843,0.9097658,2831.1,2829.2,0.1]
[1763995239050,0.4772,2831.2,2829.2,0.1]
[1763995239216,0.405504,2831.1,2829.3,0.1087]
[1763995239417,0.4772,2831.3,2829.3,0.1087]
[1763995239745,0.405504,2831.1,2829.3,0.1087]
[1763995239919,0.4772,2831.2,2829.4,0.972504]
[1763995240241,0.6652,2831.1,2829.8,0.1]
[1763995240448,0.238,2831.0,2829.8,0.1]
[1763995240616,0.238,2831.0,2829.9,0.467]
[1763995240822,0.55442723,2832.3,2830.2,0.405504]
[1763995241151,0.002,2833.2,2830.3,0.1353]
[1763995241152,0.7152,2832.0,2830.3,0.1353]
[1763995241609,0.7152,2832.0,2829.9,0.6023]
[1763995241610,0.4772,2831.9,2829.9,0.6023]
[1763995241806,0.4772,2831.9,2829.4,0.405504]
[1763995241807,1.13109811,2831.3,2829.4,0.405504]
[1763995242048,0.86204579,2831.2,2829.5,0.467]
[1763995242353,0.4772,2831.8,2829.6,0.405504]
[1763995242507,0.238,2831.7,2830.2,0.1]
[1763995242706,0.238,2831.7,2830.4,0.1]
[1763995243248,0.238,2831.7,2830.5,0.1353]
[1763995243448,0.238,2831.7,2830.5,0.6023]
[1763995243743,0.4772,2831.6,2830.5,0.1353]
[1763995244418,0.237,2831.7,2830.5,0.1353]
[1763995244647,0.237,2831.7,2830.6,0.567]
[1763995244953,0.4772,2831.6,2830.5,0.1353]
[1763995245137,0.4772,2831.6,2830.1,0.467]
[1763995245334,0.4772,2831.6,2830.2,0.1]
[1763995245522,0.1808,2832.1,2830.3,0.405504]
[1763995245722,0.4772,2832.0,2830.3,0.872504]
[1763995245923,0.405504,2831.9,2830.4,0.1353]
[1763995246121,0.4772,2832.0,2830.4,0.6023]
[1763995246322,0.4772,2832.0,2830.5,0.1]
[1763995246643,0.4772,2832.0,2830.7,0.1]
[1763995246951,0.4772,2832.0,2830.5,0.467]
[1763995247252,0.32729783,2831.9,2830.4,0.1353]
[1763995247412,0.405504,2831.8,2829.9,0.4828]
[1763995247610,0.405504,2831.6,2829.4,0.4828]
[1763995247847,0.32732536,2831.5,2829.4,0.4828]
[1763995248056,0.405504,2831.4,2829.4,0.4828]
[1763995248357,0.405504,2831.2,2829.4,0.4828]
[1763995248561,0.79802536,2831.1,2829.5,0.1]
[1763995248733,0.79802536,2831.1,2829.4,0.4828]
[1763995248734,0.32732536,2831.0,2829.4,0.5828]
[1763995249062,0.79802536,2831.0,2829.4,0.5828]
[1763995249233,0.1976,2830.9,2829.7,0.1]
[1763995249569,0.1976,2830.9,2829.4,0.4828]
[1763995249732,0.1976,2830.9,2829.5,0.405504]
[1763995250060,0.6559,2830.9,2829.5,0.505504]
[1763995250219,0.6559,2830.9,2829.6,0.4773]
[1763995250420,0.6559,2830.9,2829.8,0.1]
[1763995250865,0.6559,2830.9,2829.3,0.1087]
[1763995250866,0.181,2829.9,2829.4,0.1]
[1763995251072,0.181,2829.9,2828.3,0.238]
[1763995251073,0.72559411,2829.8,2828.5,0.001]
[1763995251371,0.181,2828.9,2828.5,0.001]
[1763995251579,1.40801428,2828.8,2828.5,0.001]
[1763995251867,0.3285345,2828.7,2828.5,0.001]
[1763995252023,1.1923385,2828.7,2828.5,0.001]
[1763995252218,1.4293385,2828.7,2828.5,0.001]
[1763995253027,1.4293385,2828.7,2828.0,0.001]
[1763995253028,0.405504,2828.6,2828.0,0.001]
[1763995253227,0.405504,2828.1,2826.6,0.1353]
[1763995253450,0.405504,2827.9,2825.9,0.56888213]
[1763995253760,0.405504,2827.7,2825.0,7.48935984]
[1763995253960,0.405504,2827.7,2824.9,0.1353]
[1763995253961,0.405504,2827.5,2825.7,0.4773]
[1763995254146,0.3285345,2827.4,2825.7,0.4773]
[1763995254475,0.3285345,2827.4,2824.9,0.1353]
[1763995254476,0.181,2826.1,2824.9,0.1353]
[1763995254627,0.237,2826.0,2824.9,0.1353]
[1763995255140,0.237,2826.0,2824.6,0.4773]
[1763995255141,0.863804,2825.9,2824.0,0.4773]
[1763995255342,0.863804,2825.9,2823.6,0.1363]
[1763995255343,0.237,2825.8,2824.4,0.4773]
[1763995255551,0.237,2825.9,2824.6,0.4773]
[1763995255863,0.237,2826.1,2825.0,0.4773]
[1763995256071,0.237,2826.1,2824.5,0.4773]
[1763995256072,0.6953,2826.1,2824.5,0.4773]
[1763995256472,0.237,2826.1,2824.8,0.4773]
[1763995256853,0.237,2826.1,2823.8,6.22768538]
[1763995256854,0.181,2825.4,2823.9,0.4773]
[1763995257078,0.418,2825.4,2823.9,0.4773]
[1763995257399,0.96259411,2825.4,2823.6,0.1363]
[1763995257568,0.4773,2827.2,2823.6,0.1363]
[1763995257569,0.4583,2826.9,2825.3,0.58509776]
[1763995257764,0.642504,2826.8,2825.3,0.10779776]
[1763995258165,0.4583,2826.7,2825.3,0.10779776]
[1763995258368,0.238,2826.6,2825.4,0.4773]
[1763995258688,0.405504,2826.5,2825.3,0.10779776]
[1763995258894,0.863804,2826.5,2825.3,0.10779776]
[1763995259054,0.6393,2826.4,2825.3,0.10779776]
[1763995259256,1.36489411,2826.4,2825.3,0.10779776]
[1763995259484,0.6393,2826.4,2825.3,0.10779776]
[1763995259669,0.6963,2826.3,2825.3,0.10779776]
[1763995260178,0.4583,2826.2,2825.3,0.10779776]
[1763995260594,0.72559411,2825.9,2825.3,0.10779776]
[1763995260966,0.238,2825.8,2825.3,0.10779776]
[1763995261390,0.238,2825.8,2823.4,0.1171]
[1763995261391,0.405504,2825.3,2823.4,0.1171]
[1763995261571,1.13109811,2824.7,2822.8,0.1171]
[1763995261783,0.238,2824.6,2823.0,0.4773]
[1763995261989,0.238,2824.6,2822.8,0.1171]
[1763995262158,0.405504,2824.5,2822.8,0.1171]
[1763995262357,0.72559411,2824.7,2822.8,0.1171]
[1763995262358,0.72559411,2824.7,2822.8,0.5944]
[1763995262557,0.238,2824.6,2822.8,0.5944]
[1763995262759,0.4583,2825.3,2823.0,0.405504]
[1763995263023,0.238,2825.8,2823.9,4.60168]
[1763995263224,0.238,2825.8,2824.1,0.405504]
[1763995263375,0.238,2825.9,2824.2,2.576273]
[1763995263735,0.181,2828.4,2826.3,0.1401]
[1763995263736,6.22768538,2828.2,2826.3,0.1401]
[1763995263875,0.181,2828.4,2826.4,0.405504]
[1763995264238,0.238,2828.6,2827.2,0.09158213]
[1763995264567,0.6963,2828.6,2827.2,0.09158213]
[1763995264785,0.238,2828.6,2827.2,0.56888213]
[1763995265218,0.4583,2829.1,2827.3,0.405504]
[1763995265382,0.4583,2829.0,2826.4,0.1129]
[1763995265585,0.72559411,2828.2,2826.4,0.1129]
[1763995265793,0.93332795,2828.1,2826.4,0.1129]
[1763995265986,1.39162795,2828.1,2826.3,0.1401]
[1763995266191,0.4583,2828.0,2826.4,0.4773]
[1763995266409,0.4583,2828.0,2826.3,0.1401]
[1763995266576,0.405504,2827.9,2826.3,0.1401]
[1763995266991,0.4583,2827.9,2826.3,0.1401]
[1763995267218,0.4583,2827.9,2826.3,0.23168213]
[1763995267535,0.4583,2827.9,2826.3,0.1401]
[1763995267759,0.4583,2827.9,2826.3,0.6174]
[1763995267889,0.238,2828.1,2826.4,7.11048938]
[1763995268084,0.238,2828.1,2826.6,0.49708613]
[1763995268296,0.238,2828.1,2827.0,0.09158213]
[1763995268520,0.238,2828.1,2826.7,0.4773]
[1763995268691,0.6963,2828.1,2826.7,0.4773]
[1763995269128,0.238,2828.1,2826.8,0.405504]
[1763995269296,0.238,2828.1,2827.0,0.09158213]
[1763995269505,0.002,2828.7,2826.9,6.22768538]
[1763995269720,0.002,2828.7,2827.7,0.09158213]
[1763995270087,0.002,2828.7,2827.0,0.66331894]
[1763995270088,0.002,2828.7,2828.0,0.49708613]
[1763995270288,0.002,2828.7,2828.5,0.405504]
[1763995270498,0.002,2828.7,2828.4,6.22768538]
[1763995270499,0.002,2829.0,2828.7,0.405504]
[1763995270722,0.181,2830.9,2829.0,0.405504]
[1763995270929,0.8773,2831.3,2829.7,6.22768538]
[1763995271255,0.238,2831.3,2829.7,6.22768538]
[1763995271393,0.4603,2832.0,2830.3,1.13109811]
[1763995271721,0.002,2832.0,2830.8,0.405504]
[1763995271934,0.002,2832.0,2830.9,0.1245]
[1763995272088,0.4603,2832.0,2830.7,6.22768538]
[1763995272289,0.002,2832.0,2830.8,0.882804]
[1763995272718,0.002,2832.0,2830.9,0.1245]
[1763995272920,0.002,2832.0,2831.0,0.405504]
[1763995273227,0.002,2832.0,2831.3,6.63318938]
[1763995273523,0.002,2832.0,2831.7,0.405504]
[1763995273723,0.002,2832.0,2831.4,6.46568538]
[1763995273926,0.002,2832.0,2831.6,0.405504]
[1763995274224,0.002,2832.0,2831.7,0.4773]
[1763995274443,0.002,2832.0,2831.8,0.405504]
[1763995274646,0.002,2832.0,2831.9,0.09158213]
[1763995274943,0.002,2832.0,2831.2,0.405504]
[1763995275145,0.002,2832.0,2831.2,0.882804]
[1763995275457,0.002,2832.0,2831.6,0.405504]
[1763995275610,0.002,2832.0,2831.8,0.09158213]
[1763995275812,0.002,2832.0,2831.9,0.405504]
[1763995276338,0.002,2832.0,2831.9,0.882804]
[1763995276635,0.002,2832.0,2831.8,0.09158213]
[1763995276941,0.002,2832.0,2831.6,0.405504]
[1763995276942,0.002,2832.0,2831.9,0.97438613]
[1763995277359,0.002,2832.0,2831.2,0.237]
[1763995277360,0.002,2832.0,2831.3,0.4773]
[1763995277647,0.002,2832.0,2831.5,6.31926751]
[1763995277815,0.002,2832.0,2831.9,0.405504]
[1763995278015,0.002,2832.0,2831.9,0.882804]
[1763995278210,0.002,2832.0,2831.3,0.09158213]
[1763995278415,0.002,2832.0,2830.9,0.1245]
[1763995278635,0.002,2832.0,2831.0,0.4773]
[1763995278922,0.002,2832.0,2831.5,0.405504]
[1763995279137,0.002,2832.0,2831.7,0.09158213]
[1763995279339,0.002,2832.0,2831.5,0.405504]
[1763995279850,0.002,2832.0,2831.0,0.4773]
[1763995280056,0.4643,2831.9,2830.4,0.09158213]
[1763995280267,0.1864,2831.1,2829.4,0.1245]
[1763995280434,0.405504,2831.0,2828.9,0.1381]
[1763995280761,0.869804,2831.0,2828.6,0.4538]
[1763995280970,0.17817981,2830.9,2828.7,0.03535192]
[1763995281114,0.4643,2830.8,2828.7,0.54538213]
[1763995281317,0.4643,2830.8,2829.0,0.09158213]
[1763995281757,0.4643,2830.8,2828.9,0.1381]
[1763995281969,0.4643,2830.8,2829.3,0.09158213]
[1763995282373,0.4643,2830.8,2829.0,6.68148538]
[1763995282374,0.4643,2830.8,2829.1,0.09158213]
[1763995282747,0.6507,2831.1,2829.5,0.09158213]
[1763995283105,0.6507,2831.1,2829.2,6.22768538]
[1763995283106,0.6507,2831.1,2830.0,0.405504]
[1763995283264,0.6507,2831.1,2829.2,6.22768538]
[1763995283265,0.4643,2831.0,2829.3,1.35894854]
[1763995283432,0.4643,2831.0,2829.6,0.09158213]
[1763995283632,0.4643,2831.0,2829.3,0.54538213]
[1763995283869,6.64224558,2832.3,2829.9,0.09158213]
[1763995283870,0.1864,2831.3,2829.9,0.09158213]
[1763995284048,0.1864,2831.3,2830.0,0.405504]
[1763995284251,0.1856,2831.3,2830.2,0.09158213]
[1763995284466,0.1856,2831.3,2829.9,0.4538]
[1763995284467,0.4643,2832.2,2830.7,6.63318938]
[1763995284667,0.4643,2832.2,2831.0,0.09158213]
[1763995285373,0.4643,2831.9,2830.6,0.1253]
[1763995285677,0.1864,2832.8,2830.6,0.1253]
[1763995285678,0.1864,2832.8,2830.7,6.66851633]
[1763995285875,0.4643,2832.6,2831.2,0.09158213]
[1763995286179,0.4643,2832.6,2830.9,0.405504]
[1763995286379,0.4643,2832.6,2830.8,0.09158213]
[1763995286580,0.4643,2832.6,2830.9,0.405504]
[1763995286880,0.4643,2832.2,2830.9,0.49708613]
[1763995287064,0.4643,2831.9,2830.5,0.405504]
[1763995287263,0.002,2831.1,2830.5,0.859304]
[1763995287467,0.002,2831.1,2831.0,0.09158213]
[1763995288090,0.002,2831.1,2831.0,0.859304]
[1763995288380,0.002,2831.1,2831.0,0.405504]
[1763995288551,0.002,2831.1,2831.0,0.95088613]
[1763995289542,0.002,2831.1,2831.0,7.17857151]
[1763995289948,0.002,2831.4,2831.2,0.405504]
[1763995290250,0.002,2831.4,2831.3,0.49708613]
[1763995290782,0.002,2831.4,2830.6,0.4538]
[1763995291172,0.002,2831.4,2831.1,0.09158213]
[1763995291548,0.002,2831.4,2830.8,0.09158213]
[1763995291754,0.002,2831.4,2830.8,6.68148538]
[1763995291950,0.002,2831.4,2831.0,0.405504]
[1763995292254,0.002,2831.4,2831.3,0.09158213]
[1763995292581,0.002,2831.4,2831.3,0.49708613]
[1763995292882,0.002,2831.4,2830.5,0.09158213]
[1763995292883,0.4663,2831.4,2830.5,0.09158213]
[1763995293286,0.002,2831.4,2830.5,6.68148538]
[1763995293486,0.002,2831.4,2830.9,0.09158213]
[1763995293653,0.002,2831.4,2831.1,0.09158213]
[1763995293854,0.002,2831.4,2830.9,0.09158213]
[1763995294053,0.002,2831.4,2830.2,0.1253]
[1763995294054,0.4643,2831.3,2830.2,0.1253]
[1763995294254,0.4643,2831.3,2830.3,0.09158213]
[1763995294691,0.4643,2831.3,2830.2,0.1253]
[1763995294894,0.4643,2831.3,2828.5,0.0916]
[1763995294895,6.22768538,2831.0,2828.5,0.0916]
[1763995295098,0.1864,2831.2,2828.6,0.4538]
[1763995295099,1.13109811,2830.4,2828.6,0.4538]
[1763995295405,0.62276854,2830.9,2828.5,0.0916]
[1763995295406,0.4643,2830.3,2828.5,0.0916]
[1763995295550,0.405504,2830.2,2828.1,0.4538]
[1763995295777,0.405504,2830.2,2828.3,0.1]
[1763995296012,0.4643,2830.1,2828.6,0.1]
[1763995296197,0.405504,2830.0,2827.9,0.1]
[1763995296397,0.591904,2830.0,2827.9,0.74405854]
[1763995296578,0.4643,2829.9,2827.9,0.1]
[1763995296777,0.4643,2829.9,2828.3,0.1]
[1763995297816,0.4643,2829.9,2828.5,0.1]
[1763995298016,0.4643,2829.9,2827.8,3.64918719]
[1763995298017,0.405504,2829.8,2827.8,0.1129]
[1763995298218,0.405504,2829.8,2827.3,0.1245]
[1763995298513,0.405504,2829.6,2827.3,1.30389411]
[1763995298715,0.4643,2829.5,2827.7,0.1]
[1763995299416,0.4643,2829.5,2828.0,0.1]
[1763995299634,0.4643,2829.5,2827.8,0.405504]
[1763995299796,0.4643,2829.5,2827.9,0.1]
[1763995300136,0.4643,2829.5,2828.0,0.405504]
[1763995300289,0.4643,2829.5,2828.2,0.1]
[1763995301102,0.1864,2830.0,2828.3,0.405504]
[1763995301340,0.4643,2829.8,2828.4,0.1]
[1763995301541,0.4643,2829.8,2828.5,0.405504]
[1763995301750,0.1864,2830.0,2828.7,0.405504]
[1763995301901,0.1864,2830.0,2829.1,0.1]
[1763995302108,0.6507,2830.0,2828.9,0.405504]
[1763995302331,0.6507,2830.0,2828.8,0.1]
[1763995302506,0.6507,2830.0,2828.9,0.405504]
[1763995302701,0.1864,2830.3,2829.1,0.1]
[1763995302936,0.1864,2830.3,2829.4,0.1]
[1763995303146,0.1864,2830.6,2829.5,0.405504]
[1763995303330,0.4643,2830.9,2829.5,0.859304]
[1763995303636,0.4643,2830.9,2829.6,0.405504]
[1763995303838,0.002,2832.0,2830.0,0.405504]
[1763995303839,0.4663,2831.4,2830.0,0.405504]
[1763995304012,0.4663,2831.4,2830.1,0.6098]
[1763995304013,0.002,2831.4,2830.1,0.6098]
[1763995304200,0.002,2831.4,2830.8,0.1]
[1763995304401,0.002,2831.4,2830.4,0.1]
[1763995304606,0.002,2831.4,2830.2,0.405504]
[1763995304607,0.4643,2831.3,2830.2,0.405504]
[1763995304813,0.002,2831.4,2830.8,0.1]
[1763995305707,0.002,2831.4,2830.2,1.13109811]
[1763995305708,0.002,2831.4,2831.0,0.1]
[1763995306142,0.002,2831.4,2831.0,0.5538]
[1763995306435,0.002,2831.4,2831.3,0.505504]
[1763995306637,0.002,2831.4,2831.3,0.859304]
[1763995306841,0.002,2831.4,2831.3,0.959304]
[1763995307310,0.002,2831.4,2831.3,1.75056235]
[1763995307944,0.0012,2831.4,2831.3,1.75056235]
[1763995308271,0.0012,2831.4,2831.3,0.505504]
[1763995308809,0.0012,2831.4,2831.1,0.1]
[1763995309842,0.0012,2831.4,2831.3,0.505504]
[1763995310319,0.0012,2831.4,2831.3,0.405504]
[1763995310518,0.0012,2831.4,2831.2,0.1]
[1763995310718,0.0012,2831.4,2830.3,0.4581]
[1763995310920,0.0012,2831.4,2830.6,0.1]
[1763995311326,0.0012,2831.4,2830.3,0.5581]
[1763995311643,0.0012,2831.4,2830.8,0.1]
[1763995311807,0.0012,2831.4,2830.7,0.405504]
[1763995312010,0.0012,2831.4,2831.2,0.405504]
[1763995312214,0.0012,2831.4,2831.3,0.505504]
[1763995313648,0.0012,2831.4,2831.3,0.405504]
[1763995314413,0.0012,2831.4,2831.1,0.1]
[1763995315029,0.0012,2831.4,2831.3,0.1]
[1763995315229,0.0012,2831.4,2830.2,1.18369411]
[1763995315425,0.0012,2831.4,2830.6,0.1]
[1763995315771,0.0012,2831.4,2830.3,0.1]
[1763995315772,0.4679,2831.4,2830.3,0.1]
[1763995316464,0.4679,2831.4,2830.1,0.156]
[1763995316669,0.4679,2831.4,2830.6,0.1]
[1763995317227,0.0012,2831.4,2830.7,0.405504]
[1763995317746,0.0012,2831.4,2830.9,0.1]
[1763995318827,0.0012,2831.4,2831.0,0.405504]
[1763995319055,0.0012,2831.4,2831.3,0.505504]
[1763995319568,0.0012,2831.4,2831.3,0.99892346]
[1763995319728,0.0012,2831.4,2831.3,9.20457349]
[1763995319924,0.0012,2831.4,2831.3,10.12503084]
[1763995320369,0.002,2832.0,2831.9,0.505504]
[1763995320665,0.65130662,2834.0,2832.9,0.1]
[1763995320666,0.4667,2834.0,2832.9,0.1]
[1763995320879,0.1864,2834.4,2832.2,0.1]
[1763995320880,0.4687,2833.2,2832.2,0.1]
[1763995321076,0.4687,2833.2,2831.7,0.405504]
[1763995321245,0.4687,2833.2,2832.1,0.405504]
[1763995321446,0.002,2833.2,2832.9,0.1]
[1763995321675,0.002,2833.2,2833.1,0.1]
[1763995321838,0.002,2833.2,2833.1,0.661504]
[1763995322042,0.002,2833.2,2833.1,2.00985135]
[1763995322735,0.002,2833.2,2833.1,5.53955379]
[1763995322936,0.002,2833.2,2833.1,8.64857446]
[1763995323134,0.002,2833.2,2833.1,9.7784079]
[1763995323345,0.002,2833.2,2833.1,2.87244546]
[1763995323585,0.002,2833.2,2833.1,6.5021479]
[1763995323787,0.002,2833.2,2833.1,8.9646879]
[1763995323973,0.002,2833.2,2833.1,9.9301869]
[1763995324487,0.002,2833.5,2833.4,8.74647349]
[1763995324783,0.002,2833.5,2833.4,13.22300897]
[1763995324990,0.4667,2835.6,2833.8,2.699966]
[1763995325291,0.4667,2836.0,2834.8,1.13109811]
[1763995325487,0.002,2836.9,2834.9,0.237]
[1763995325488,0.1879,2836.1,2834.9,0.237]
[1763995325693,0.1879,2836.1,2835.3,0.1]
[1763995325904,0.4679,2836.6,2835.7,0.405504]
[1763995326202,0.4679,2836.6,2836.0,0.405504]
[1763995326360,0.4679,2836.6,2835.5,0.405504]
[1763995326561,0.0012,2836.6,2836.0,0.1]
[1763995326764,0.0012,2836.6,2836.5,0.545704]
[1763995326966,0.0012,2836.6,2836.5,0.882704]
[1763995327187,0.0012,2836.6,2836.5,1.340804]
[1763995327387,0.002,2837.2,2837.0,0.1]
[1763995327586,0.002,2837.2,2837.1,9.44157349]
[1763995327790,0.002,2837.9,2837.4,0.405504]
[1763995327992,0.002,2837.9,2837.8,1.23109811]
[1763995328302,0.002,2837.9,2837.8,1.28015135]
[1763995328502,0.002,2837.9,2837.8,0.405504]
[1763995328688,0.002,2837.9,2837.8,7.95670861]
[1763995328998,0.6546,2839.7,2838.1,9.95238811]
[1763995328999,0.1879,2839.7,2838.1,9.95238811]
[1763995329202,0.4687,2840.1,2838.4,0.1]
[1763995329364,0.002,2840.1,2839.1,0.1]
[1763995329695,0.002,2840.1,2838.5,0.505504]
[1763995329696,0.4687,2839.3,2838.5,0.505504]
[1763995330007,0.4687,2839.3,2838.3,0.1]
[1763995330186,0.1879,2839.2,2837.9,0.405504]
[1763995330506,0.4687,2839.3,2837.9,0.863604]
[1763995330829,0.002,2839.3,2838.7,0.1]
[1763995331023,0.002,2839.3,2838.8,0.405504]
[1763995331382,0.4687,2839.3,2838.7,0.1]
[1763995331608,0.002,2839.3,2838.3,0.405504]
[1763995331807,0.0012,2839.3,2838.6,0.405504]
[1763995332011,0.0012,2839.3,2837.9,1.18369411]
[1763995332182,0.4667,2839.2,2838.3,0.1]
[1763995332720,0.1879,2839.1,2838.3,0.1]
[1763995332918,0.1879,2839.1,2837.9,0.405504]
[1763995333225,0.0012,2839.3,2838.6,0.1]
[1763995333426,0.4667,2839.1,2838.1,0.405504]
[1763995333723,0.4667,2839.1,2838.3,0.1]
[1763995334092,0.4667,2839.1,2838.4,0.405504]
[1763995334287,0.4667,2839.1,2837.6,3.67603537]
[1763995334288,0.4667,2839.1,2837.9,0.1]